fUSD/lending_fUSD_20260402
["ID","MTS","AMOUNT","RATE_DAILY","PERIOD"]
[419310568,1775141456084,-151.492031,0.0002,2]
[419310569,1775141456095,-151.0,0.0002,2]
[419310570,1775141456106,-151.492031,0.0002,2]
[419310571,1775141456117,-151.492031,0.0002,2]
[419310572,1775141456127,-151.492031,0.0002,2]
[419310573,1775141456138,-151.0,0.0002,2]
[419310574,1775141456148,-151.0,0.0002,2]
[419310575,1775141456163,-153.537546,0.0002,2]
[419310576,1775141456172,-151.0,0.0002,2]
[419310577,1775141456182,-158.634807,0.0002,2]
[419310578,1775141456192,-158.634807,0.0002,2]
[419310579,1775141456202,-158.634807,0.0002,2]
[419310580,1775141456211,-158.634807,0.0002,2]
[419310581,1775141456222,-151.0,0.0002,2]
[419310582,1775141456232,-151.0,0.0002,2]
[419310583,1775141456242,-151.0,0.0002,2]
[419310584,1775141456251,-151.0,0.0002,2]
[419310585,1775141456261,-151.0,0.0002,2]
[419310586,1775141456271,-151.0,0.0002,2]
[419310587,1775141456281,-151.0,0.0002,2]
[419310588,1775141456291,-151.0,0.0002,2]
[419310589,1775141456300,-386.467739,0.0002,2]
[419310590,1775141456312,-386.467739,0.0002,2]
[419310591,1775141456321,-386.467739,0.0002,2]
[419310592,1775141456330,-386.467739,0.0002,2]
[419310593,1775141456339,-3699.625327,0.0002,2]
[419310594,1775141456349,-3699.625327,0.0002,2]
[419310595,1775141456358,-3699.625327,0.0002,2]
[419310596,1775141456367,-3699.625327,0.0002,2]
[419310597,1775141456376,-601.163208,0.0002,2]
[419310598,1775141456385,-974.775758,0.0002,2]
[419310599,1775141456394,-601.163208,0.0002,2]
[419310600,1775141456404,-974.775758,0.0002,2]
[419310601,1775141456413,-601.163208,0.0002,2]
[419310602,1775141456423,-601.163208,0.0002,2]
[419310603,1775141456432,-200.0,0.0002,10]
[419310604,1775141456442,-974.775758,0.0002,2]
[419310605,1775141456451,-974.775758,0.0002,2]
[419310606,1775141456460,-580.661962,0.0002,2]
[419310607,1775141456470,-580.661962,0.0002,2]
[419310608,1775141456479,-580.661962,0.0002,2]
[419310609,1775141456488,-580.661962,0.0002,2]
[419310610,1775141456497,-150.0,0.0002,20]
[419310611,1775141456507,-223.39429,0.0002,2]
[419310612,1775141456516,-223.39429,0.0002,2]
[419310613,1775141456525,-223.39429,0.0002,2]
[419310614,1775141456534,-223.39429,0.0002,2]
[419310615,1775141456543,-1106.257721,0.0002,2]
[419310616,1775141456552,-1106.257721,0.0002,2]
[419310617,1775141456562,-287.523647,0.0002,2]
[419310618,1775141456570,-1106.257721,0.0002,2]
[419310619,1775141456580,-287.523647,0.0002,2]
[419310620,1775141456589,-1106.257721,0.0002,2]
[419310621,1775141456598,-287.523647,0.0002,2]
[419310622,1775141456607,-287.523647,0.0002,2]
[419310623,1775141456617,-1189.49668369,0.00020073,2]
[419310624,1775141456626,-2000.0,0.000201,2]
[419310625,1775141456636,-300.0,0.000201,10]
[419310626,1775141456646,-151.0,0.00020268,2]
[419310627,1775141456656,-300.0,0.00020271,2]
[419310628,1775141456666,-300.0,0.00020271,2]
[419310629,1775141456676,-300.0,0.00020271,2]
[419310630,1775141456685,-300.0,0.00020271,2]
[419310631,1775141456694,-300.0,0.00020271,2]
[419310632,1775141456704,-500.0,0.00020271,2]
[419310633,1775141456715,-155387.6512537,0.00020272,2]
[419310634,1775141456725,-151.0,0.00020272,2]
[419310635,1775141456734,-151.0,0.00020272,2]
[419310636,1775141456744,-151.0,0.00020272,2]
[419310637,1775141456754,-304.27646,0.00020272,2]
[419310638,1775141456763,-304.27646,0.00020272,2]
[419310639,1775141456772,-304.27646,0.00020272,2]
[419310640,1775141456781,-304.27646,0.00020272,2]
[419310641,1775141456792,-500.0,0.00020273,2]
[419310642,1775141456802,-350.0,0.00020274,2]
[419310643,1775141456811,-2000.0,0.00020404,2]
[419310644,1775141456820,-250.0,0.00020521,2]
[419310645,1775141456829,-500.0,0.00020547,2]
[419310646,1775141456841,-560.26992901,0.00020547,2]
[419310647,1775141456850,-431.42104867,0.00020547,2]
[419310648,1775141456859,-21693.66,0.00020548,2]
[419310649,1775141456868,-1106.257721,0.00020548,2]
[419310650,1775141456878,-1106.257721,0.00020548,2]
[419310651,1775141456888,-287.523647,0.00020548,2]
[419310652,1775141456897,-1106.257721,0.00020548,2]
[419310653,1775141456907,-287.523647,0.00020548,2]
[419310654,1775141456916,-1106.257721,0.00020548,2]
[419310655,1775141456927,-287.523647,0.00020548,2]
[419310656,1775141456937,-287.523647,0.00020548,2]
[419310657,1775141456947,-1190.0,0.00020669,2]
[419310658,1775141456956,-22828.79057862,0.000207,2]
[419310659,1775141456966,-450.0,0.00020822,2]
[419310660,1775141456976,-170.2742687,0.00020832,2]
[419310661,1775141456985,-1190.0,0.00020857,2]
[419310662,1775141456995,-1190.0,0.00020863,2]
[419310663,1775141457004,-735.0,0.00020914,10]
[419310664,1775141457014,-1190.0,0.00020918,2]
[419310665,1775141457024,-897.7,0.00020921,2]
[419310666,1775141457034,-500.0,0.00021,2]
[419310667,1775141457044,-20000.0,0.00021,2]
[419310668,1775141457054,-1202.21778264,0.00021,2]
[419310669,1775141457064,-198.41876836,0.00021,2]
[419310670,1775141457074,-365.9854,0.00021,32]
[419310671,1775141457083,-350.0,0.00021068,2]
[419310672,1775141457093,-161.8,0.00021072,2]
[419310673,1775141457102,-300.0,0.0002116,2]
[419310674,1775141457112,-300.0,0.0002116,2]
[419310675,1775141457121,-30000.0,0.00021161,2]
[419310676,1775141457130,-500.0,0.00021232,2]
[419310677,1775141457139,-151.492031,0.00021233,2]
[419310678,1775141457148,-151.0,0.00021233,2]
[419310679,1775141457159,-151.492031,0.00021233,2]
[419310680,1775141457168,-151.492031,0.00021233,2]
[419310681,1775141457177,-151.492031,0.00021233,2]
[419310682,1775141457186,-151.0,0.00021233,2]
[419310683,1775141457195,-151.0,0.00021233,2]
[419310684,1775141457203,-172.002255,0.00021233,2]
[419310685,1775141457213,-158.634807,0.00021233,2]
[419310686,1775141457222,-158.634807,0.00021233,2]
[419310687,1775141457231,-158.634807,0.00021233,2]
[419310688,1775141457240,-158.634807,0.00021233,2]
[419310689,1775141457249,-151.0,0.00021233,2]
[419310690,1775141457259,-151.0,0.00021233,2]
[419310691,1775141457269,-151.0,0.00021233,2]
[419310692,1775141457278,-151.250482,0.00021233,2]
[419310693,1775141457287,-151.0,0.00021233,2]
[419310694,1775141457296,-151.0,0.00021233,2]
[419310695,1775141457306,-151.0,0.00021233,2]
[419310696,1775141457315,-151.0,0.00021233,2]
[419310697,1775141457324,-386.467739,0.00021233,2]
[419310698,1775141457333,-386.467739,0.00021233,2]
[419310699,1775141457342,-386.467739,0.00021233,2]
[419310700,1775141457351,-386.467739,0.00021233,2]
[419310701,1775141457360,-3699.625327,0.00021233,2]
[419310702,1775141457369,-3699.625327,0.00021233,2]
[419310703,1775141457378,-3699.625327,0.00021233,2]
[419310704,1775141457387,-3699.625327,0.00021233,2]
[419310705,1775141457396,-601.163208,0.00021233,2]
[419310706,1775141457406,-974.775758,0.00021233,2]
[419310707,1775141457415,-601.163208,0.00021233,2]
[419310708,1775141457424,-974.775758,0.00021233,2]
[419310709,1775141457433,-601.163208,0.00021233,2]
[419310710,1775141457442,-601.163208,0.00021233,2]
[419310711,1775141457452,-974.775758,0.00021233,2]
[419310712,1775141457462,-974.775758,0.00021233,2]
[419310713,1775141457471,-40943.952733,0.00021233,2]
[419310714,1775141457480,-263.72751143,0.00021236,2]
[419310715,1775141457489,-2608.0,0.00021244,10]
[419310716,1775141457497,-1193.0,0.00021248,2]
[419310717,1775141457507,-1190.0,0.00021323,2]
[419310718,1775141457516,-161.7923157,0.00021344,2]
[419310719,1775141457525,-6431.58,0.0002137,2]
[419310720,1775141457534,-550.0,0.0002137,2]
[419310721,1775141457543,-580.661962,0.0002137,2]
[419310722,1775141457552,-580.661962,0.0002137,2]
[419310723,1775141457561,-580.661962,0.0002137,2]
[419310724,1775141457570,-580.661962,0.0002137,2]
[419310725,1775141457579,-223.39429,0.0002137,2]
[419310726,1775141457588,-223.39429,0.0002137,2]
[419310727,1775141457597,-223.39429,0.0002137,2]
[419310728,1775141457606,-223.39429,0.0002137,2]
[419310729,1775141457615,-1190.0,0.00021395,2]
[419310730,1775141457624,-1190.0,0.00021413,2]
[419310731,1775141457634,-1190.0,0.00021493,2]
[419310732,1775141457643,-151.0,0.00021497,2]
[419310733,1775141457652,-58002.46333753,0.000215,2]
[419310734,1775141457662,-223.86776951,0.000215,2]
[419310735,1775141457671,-1193.0,0.00021526,2]
[419310736,1775141457681,-3375.81532785,0.00021616,2]
[419310737,1775141457690,-450.0,0.00021616,2]
[419310738,1775141457701,-578.20924308,0.0002164,2]
[419310739,1775141457710,-200.0,0.0002164,2]
[419310740,1775141457719,-209.40437684,0.0002164,2]
[419310741,1775141457728,-500.0,0.0002164,2]
[419310742,1775141457737,-9552.16786547,0.0002164,2]
[419310743,1775141457746,-500.0,0.0002164,2]
[419310744,1775141457755,-500.0,0.0002164,2]
[419310745,1775141457764,-500.0,0.0002164,2]
[419310746,1775141457773,-500.0,0.0002164,2]
[419310747,1775141457782,-500.0,0.0002164,2]
[419310748,1775141457791,-500.0,0.0002164,2]
[419310749,1775141457800,-500.0,0.0002164,2]
[419310750,1775141457810,-500.0,0.0002164,2]
[419310751,1775141457820,-500.0,0.0002164,2]
[419310752,1775141457829,-500.0,0.0002164,2]
[419310753,1775141457838,-500.0,0.0002164,2]
[419310754,1775141457848,-500.0,0.0002164,2]
[419310755,1775141457858,-500.0,0.0002164,2]
[419310756,1775141457868,-500.0,0.0002164,2]
[419310757,1775141457877,-500.0,0.0002164,2]
[419310758,1775141457886,-500.0,0.0002164,2]
[419310759,1775141457895,-500.0,0.0002164,2]
[419310760,1775141457904,-500.0,0.0002164,2]
[419310761,1775141457913,-500.0,0.0002164,2]
[419310762,1775141457923,-500.0,0.0002164,2]
[419310763,1775141457932,-500.0,0.0002164,2]
[419310764,1775141457941,-500.0,0.0002164,2]
[419310765,1775141457950,-1428.38747117,0.0002164,2]
[419310766,1775141457960,-151.0,0.0002164,2]
[419310767,1775141457969,-500.0,0.0002164,2]
[419310768,1775141457978,-174.61919141,0.0002164,2]
[419310769,1775141457987,-500.0,0.0002164,2]
[419310770,1775141457996,-500.0,0.0002164,2]
[419310771,1775141458005,-500.0,0.0002164,2]
[419310772,1775141458014,-500.0,0.0002164,2]
[419310773,1775141458023,-250.0,0.0002164,2]
[419310774,1775141458034,-500.0,0.0002164,2]
[419310775,1775141458043,-250.0,0.0002164,2]
[419310776,1775141458052,-500.0,0.0002164,2]
[419310777,1775141458062,-250.0,0.0002164,2]
[419310778,1775141458071,-500.0,0.0002164,2]
[419310779,1775141458081,-250.0,0.0002164,2]
[419310780,1775141458090,-500.0,0.0002164,2]
[419310781,1775141458099,-250.0,0.0002164,2]
[419310782,1775141458109,-500.0,0.0002164,2]
[419310783,1775141458118,-250.0,0.0002164,2]
[419310784,1775141458127,-500.0,0.0002164,2]
[419310785,1775141458136,-250.0,0.0002164,2]
[419310786,1775141458146,-200.0,0.0002164,2]
[419310787,1775141458157,-250.0,0.0002164,2]
[419310788,1775141458167,-250.0,0.0002164,2]
[419310789,1775141458177,-250.0,0.0002164,2]
[419310790,1775141458186,-250.0,0.0002164,2]
[419310791,1775141458195,-156.86681255,0.0002164,2]
[419310792,1775141458204,-743.50770149,0.0002164,2]
[419310793,1775141458214,-802.22446877,0.0002164,2]
[419310794,1775141458224,-170.0,0.0002164,2]
[419310795,1775141458234,-170.0,0.0002164,2]
[419310796,1775141458244,-170.0,0.0002164,2]
[419310797,1775141458253,-170.0,0.0002164,2]
[419310798,1775141458263,-170.0,0.0002164,2]
[419310799,1775141458272,-279.9045709,0.0002164,2]
[419310800,1775141458282,-170.0,0.0002164,2]
[419310801,1775141458293,-170.0,0.0002164,2]
[419310802,1775141458301,-170.0,0.0002164,2]
[419310803,1775141458311,-170.0,0.0002164,2]
[419310804,1775141458320,-170.0,0.0002164,2]
[419310805,1775141458330,-170.0,0.0002164,2]
[419310806,1775141458339,-500.0,0.00021642,2]
[419310807,1775141458349,-500.0,0.00021695,2]
[419310808,1775141458359,-9905.5980765,0.00021695,2]
[419310809,1775141458368,-151.0,0.00021695,2]
[419310810,1775141458378,-1190.0,0.00021726,2]
[419310811,1775141458387,-500.0,0.0002175,2]
[419310812,1775141458397,-10272.10520533,0.0002175,2]
[419310813,1775141458406,-151.0,0.0002175,2]
[419310814,1775141458415,-500.0,0.00021805,2]
[419310815,1775141458425,-10652.17309792,0.00021805,2]
[419310816,1775141458435,-151.0,0.00021805,2]
[419310817,1775141458444,-1190.0,0.00021812,2]
[419310818,1775141458454,-500.0,0.0002186,2]
[419310819,1775141458463,-11046.30350255,0.0002186,2]
[419310820,1775141458472,-151.0,0.0002186,2]
[419310821,1775141458482,-1190.0,0.00021869,2]
[419310822,1775141458491,-500.0,0.00021915,2]
[419310823,1775141458500,-11455.01673214,0.00021915,2]
[419310824,1775141458510,-151.0,0.00021915,2]
[419310825,1775141458521,-500.0,0.00021917,2]
[419310826,1775141458531,-500.0,0.00021917,2]
[419310827,1775141458540,-3059.34,0.00021918,2]
[419310828,1775141458550,-5000.0,0.00021918,2]
[419310829,1775141458560,-151.0,0.00021918,2]
[419310830,1775141458570,-151.0,0.00021918,2]
[419310831,1775141458580,-151.0,0.00021918,2]
[419310832,1775141458590,-151.0,0.00021918,2]
[419310833,1775141458599,-151.0,0.00021918,2]
[419310834,1775141458609,-151.0,0.00021918,2]
[419310835,1775141458618,-188.291555,0.00021918,2]
[419310836,1775141458628,-188.291555,0.00021918,2]
[419310837,1775141458637,-188.291555,0.00021918,2]
[419310838,1775141458647,-188.291555,0.00021918,2]
[419310839,1775141458658,-188.291555,0.00021918,2]
[419310840,1775141458667,-188.291555,0.00021918,2]
[419310841,1775141458677,-188.291555,0.00021918,2]
[419310842,1775141458687,-188.291555,0.00021918,2]
[419310843,1775141458696,-188.291555,0.00021918,2]
[419310844,1775141458706,-188.291555,0.00021918,2]
[419310845,1775141458715,-188.291555,0.00021918,2]
[419310846,1775141458725,-188.291555,0.00021918,2]
[419310847,1775141458735,-650.0,0.00021918,2]
[419310848,1775141458745,-1502.67288953,0.00021918,2]
[419310849,1775141458755,-1190.0,0.00021937,2]
[419310850,1775141458765,-1106.257721,0.00021951,2]
[419310851,1775141458774,-1106.257721,0.00021951,2]
[419310852,1775141458784,-287.523647,0.00021951,2]
[419310853,1775141458793,-1106.257721,0.00021951,2]
[419310854,1775141458804,-287.523647,0.00021951,2]
[419310855,1775141458814,-1106.257721,0.00021951,2]
[419310856,1775141458823,-287.523647,0.00021951,2]
[419310857,1775141458832,-287.523647,0.00021951,2]
[419310858,1775141458842,-9135.8307304,0.00021951,2]
[419310859,1775141458853,-205.68,0.00021958,2]
[419310860,1775141458862,-500.0,0.0002197,2]
[419310861,1775141458872,-11878.85235123,0.0002197,2]
[419310862,1775141458881,-151.0,0.0002197,2]
[419310863,1775141458890,-164.92,0.00022,2]
[419310864,1775141458899,-160.0,0.00022,2]
[419310865,1775141458910,-345.0,0.00022,2]
[419310866,1775141458919,-703.0,0.00022,2]
[419310867,1775141458929,-839.0,0.00022,2]
[419310868,1775141458938,-2264.0,0.00022,2]
[419310869,1775141458949,-736.0,0.00022,2]
[419310870,1775141458959,-374.0,0.00022,2]
[419310871,1775141458969,-32178.0506696,0.00022019,2]
[419310872,1775141458979,-500.0,0.00022025,2]
[419310873,1775141458989,-9890.69101055,0.00022025,2]
[419310874,1775141458999,-151.0,0.00022025,2]
[419310875,1775141459009,-18512.21833363,0.00022045,2]
[419310876,1775141459018,-500.0,0.0002208,2]
[419310877,1775141459028,-151.0,0.0002208,2]
[419310878,1775141459037,-498.4482586,0.000221,2]
[419310879,1775141459046,-242.23509251,0.0002211,2]
[419310880,1775141459055,-500.0,0.00022135,2]
[419310881,1775141459065,-151.0,0.00022135,2]
[419310882,1775141459075,-550.0,0.00022164,2]
[419310883,1775141459085,-1190.0,0.00022186,2]
[419310884,1775141459094,-200.0,0.00022188,2]
[419310885,1775141459104,-344.69331007,0.00022188,2]
[419310886,1775141459113,-1481.23780761,0.00022188,2]
[419310887,1775141459123,-181.08010149,0.00022188,2]
[419310888,1775141459132,-200.0,0.00022188,2]
[419310889,1775141459142,-771.01748645,0.00022188,2]
[419310890,1775141459152,-290.26104003,0.00022188,2]
[419310891,1775141459162,-500.0,0.0002219,2]
[419310892,1775141459172,-151.0,0.0002219,2]
[419310893,1775141459182,-183.74,0.00022254,2]
[419310894,1775141459193,-1190.0,0.0002228,2]
[419310895,1775141459204,-424.6448,0.000223,37]
[419310896,1775141459213,-152.59,0.00022309,2]
[419310897,1775141459223,-1193.0,0.00022311,2]
[419310898,1775141459232,-1190.0,0.0002237,2]
[419310899,1775141459242,-1190.0,0.00022414,2]
[419310900,1775141459251,-750.0,0.00022466,2]
[419310901,1775141459261,-35797.20487811,0.000225,2]
[419310902,1775141459270,-188.291555,0.000225,2]
[419310903,1775141459279,-188.291555,0.000225,2]
[419310904,1775141459414,-188.291555,0.000225,2]
[419310905,1775141459424,-188.291555,0.000225,2]
[419310906,1775141459433,-151.0,0.000225,2]
[419310907,1775141459442,-151.0,0.000225,2]
[419310908,1775141459452,-304.27646,0.000225,2]
[419310909,1775141459461,-304.27646,0.000225,2]
[419310910,1775141459471,-304.27646,0.000225,2]
[419310911,1775141459484,-304.27646,0.000225,2]
[419310912,1775141459494,-1193.0,0.00022515,2]
[419310913,1775141459505,-500.0,0.00022527,2]
[419310914,1775141459515,-580.661962,0.00022528,2]
[419310915,1775141459524,-580.661962,0.00022528,2]
[419310916,1775141459533,-580.661962,0.00022528,2]
[419310917,1775141459542,-580.661958,0.00022528,2]
[419310918,1775141459552,-223.39429,0.00022528,2]
[419310919,1775141459562,-223.39429,0.00022528,2]
[419310920,1775141459572,-223.39429,0.00022528,2]
[419310921,1775141459582,-223.394292,0.00022528,2]
[419310922,1775141459592,-111918.14159275,0.00022528,2]
[419310923,1775141460328,-4028.73268291,0.00022528,2]
[419310924,1775141460353,-39440.77697804,0.00022528,2]
[419310925,1775141460362,-3634.7236524,0.000226,2]
[419310926,1775141460372,-157.09,0.00022603,2]
[419310927,1775141460382,-166.89,0.00022603,2]
[419310928,1775141460391,-1190.0,0.00022674,2]
[419310929,1775141460401,-152.58312656,0.00022701,2]
[419310930,1775141460411,-527.55938316,0.0002271,2]
[419310931,1775141460421,-151.0,0.00022712,2]
[419310932,1775141460431,-151.0,0.00022712,2]
[419310933,1775141460441,-386.467739,0.00022712,2]
[419310934,1775141460451,-386.467739,0.00022712,2]
[419310935,1775141460460,-386.467739,0.00022712,2]
[419310936,1775141460470,-386.467739,0.00022712,2]
[419310937,1775141460480,-3699.625327,0.00022712,2]
[419310938,1775141460490,-3699.625327,0.00022712,2]
[419310939,1775141460500,-3699.625327,0.00022712,2]
[419310940,1775141460510,-3699.625327,0.00022712,2]
[419310941,1775141460520,-601.163208,0.00022712,2]
[419310942,1775141460530,-974.775758,0.00022712,2]
[419310943,1775141460539,-601.163208,0.00022712,2]
[419310944,1775141460549,-974.775758,0.00022712,2]
[419310945,1775141460558,-601.163208,0.00022712,2]
[419310946,1775141460567,-601.163208,0.00022712,2]
[419310947,1775141460577,-974.775758,0.00022712,2]
[419310948,1775141460586,-974.775758,0.00022712,2]
[419310949,1775141460595,-650.0,0.00022712,2]
[419310950,1775141460605,-500.0,0.0002273,2]
[419310951,1775141460614,-151.492031,0.00022731,2]
[419310952,1775141460624,-151.492031,0.00022731,2]
[419310953,1775141460635,-151.0,0.00022731,2]
[419310954,1775141460645,-151.492031,0.00022731,2]
[419310955,1775141460655,-151.492031,0.00022731,2]
[419310956,1775141460665,-151.0,0.00022731,2]
[419310957,1775141460675,-151.0,0.00022731,2]
[419310958,1775141460684,-158.634807,0.00022731,2]
[419310959,1775141460694,-158.634807,0.00022731,2]
[419310960,1775141460704,-158.634807,0.00022731,2]
[419310961,1775141460714,-158.634807,0.00022731,2]
[419310962,1775141460723,-151.0,0.00022731,2]
[419310963,1775141460733,-151.0,0.00022731,2]
[419310964,1775141460743,-151.0,0.00022731,2]
[419310965,1775141460753,-151.0,0.00022731,2]
[419310966,1775141460762,-151.0,0.00022731,2]
[419310967,1775141460771,-151.0,0.00022731,2]
[419310968,1775141460781,-200.0,0.00022736,2]
[419310969,1775141460790,-1536.04360649,0.00022736,2]
[419310970,1775141460801,-187.78006525,0.00022736,2]
[419310971,1775141460810,-200.0,0.00022736,2]
[419310972,1775141460820,-799.54513345,0.00022736,2]
[419310973,1775141460829,-434.17011299,0.00022736,2]
[419310974,1775141460838,-182.598912,0.00022737,7]
[419310975,1775141460848,-12113.33,0.0002274,2]
[419310976,1775141460858,-1571.0,0.00022819,3]
[419310977,1775141460869,-151.0,0.00022884,2]
[419310978,1775141460879,-1046.0,0.00022884,2]
[419310979,1775141460888,-621.0,0.00022884,2]
[419310980,1775141460898,-1346.0,0.00022884,2]
[419310981,1775141460908,-858.09341243,0.00022884,2]
[419310982,1775141461842,-25.83131028,0.000164,2]
[419310983,1775141461914,-650.6498392,0.000164,2]
[419310990,1775142518799,-500.0,0.00028968,120]
[419310991,1775142518881,-195.83,0.00030338,120]
[419310992,1775142519026,-18.68097117,0.00030338,120]
[419310993,1775142519051,-195.83,0.00030411,120]
[419310994,1775142519079,-286.21535931,0.00032,120]
[419310995,1775142519103,-161.2436046,0.00032,120]
[419310996,1775142519126,-162.03733298,0.00032,120]
[419310997,1775142519148,-171.86218494,0.00032,120]
[419310998,1775142519172,-635.08957583,0.00032,120]
[419310999,1775142602631,214.51097117,0.0003033,120]
[419311003,1775142611627,63666.38942559,9.5e-05,3]
[419311006,1775142631661,-5764.82247867,9.5e-05,3]
[419311007,1775142631671,-2000.0,0.00012189,2]
[419311008,1775142631682,-150.0,0.00012189,2]
[419311009,1775142631691,-250.0,0.00013,2]
[419311010,1775142631700,-42556.60983506,0.00013351,2]
[419311011,1775142631712,-3017.50146319,0.00013351,2]
[419311012,1775142631724,-8139.48040175,0.00013351,2]
[419311013,1775142631733,-451.01870163,0.00013472,2]
[419311048,1775142637925,-699.98129837,0.00013472,2]
[419311049,1775142637934,-500.0,0.00013473,2]
[419311050,1775142637945,-524.0,0.000135,2]
[419311051,1775142637954,-150.0,0.00013697,2]
[419311052,1775142637963,-532.58174765,0.00013698,2]
[419311053,1775142637973,-500.0,0.00013698,2]
[419311054,1775142637983,-500.0,0.00013698,2]
[419311055,1775142637992,-500.0,0.00013698,2]
[419311056,1775142638002,-500.0,0.00013698,2]
[419311057,1775142638011,-135.59005898,0.00013698,2]
[419311058,1775142638023,-364.40994102,0.00013698,2]
[419311059,1775142638034,-500.0,0.00013698,2]
[419311060,1775142638043,-500.0,0.00013698,2]
[419311061,1775142638054,-500.0,0.00013698,2]
[419311062,1775142638063,-500.0,0.00013698,2]
[419311063,1775142638073,-186.15865542,0.00013698,2]
[419311064,1775142638200,-313.84134458,0.00013698,2]
[419311065,1775142638210,-500.0,0.00013698,2]
[419311066,1775142638219,-160.49541625,0.00013698,2]
[419311067,1775142638230,-339.50458375,0.00013698,2]
[419311068,1775142638241,-159.96636092,0.00013698,2]
[419311070,1775142638251,-150.0,0.00013699,2]
[419311072,1775142638260,-150.0,0.00013699,2]
[419311073,1775142638270,-200.0,0.00013699,2]
[419311074,1775142638279,-2000.0,0.00013713,2]
[419311075,1775142638288,-500.0,0.00013845,2]
[419311076,1775142638298,-150.0,0.00013973,2]
[419311077,1775142638307,-150.0,0.00013973,2]
[419311078,1775142638316,-104.36659461,0.00014021,2]
[419311079,1775142638327,-395.63340539,0.00014021,2]
[419311080,1775142638337,-4172.5323,0.000144,2]
[419311081,1775142638347,-150.0,0.000145,2]
[419311082,1775142638356,-12393.31144077,0.000145,2]
[419311083,1775142638368,-1305.80323701,0.000145,2]
[419311088,1775142640442,-4485.45532222,0.000145,2]
[419311089,1775142640452,-105.31377299,0.000145,2]
[419311090,1775142640463,-7633.65622701,0.000145,2]
[419311091,1775142640473,-150.99,0.000145,2]
[419311092,1775142640482,-299.99,0.000145,2]
[419311093,1775142640492,-4999.99,0.000145,2]
[419311094,1775142640501,-651.4,0.000145,2]
[419311095,1775142640511,-255.0,0.0001482,2]
[419311096,1775142640520,-9601.90631203,0.0001499,2]
[419311097,1775142640530,-300.0,0.00015,2]
[419311098,1775142640540,-800.0,0.00015068,2]
[419311099,1775142640549,-2000.0,0.00015236,2]
[419311100,1775142640559,-173.6639,0.000157,7]
[419311101,1775142640568,-529.27867338,0.00015728,2]
[419311102,1775142640578,-1000.0,0.000158,5]
[419311103,1775142640587,-200.0,0.000158,5]
[419311104,1775142640596,-158.0,0.000159,2]
[419311105,1775142640606,-2100.0,0.000159,5]
[419311106,1775142640615,-400.0,0.000159,5]
[419311107,1775142640624,-591.85280837,0.000159,2]
[419311108,1775142640633,-2755.41656894,0.000159,2]
[419311109,1775142640643,-20496.74224851,0.000159,2]
[419311110,1775142640652,-345.67825208,0.00015906,2]
[419311111,1775142640662,-150.31858386,0.00015907,2]
[419311112,1775142640672,-29343.47041539,0.00015907,2]
[419311113,1775142640681,-4372.08142195,0.00015907,2]
[419311114,1775142640703,-263.24916206,0.00015973,2]
[419311115,1775142640714,-502.25926533,0.00015973,2]
[419311116,1775142640724,-599.98869951,0.00015973,2]
[419311117,1775142640734,-500.0,0.00015973,2]
[419311118,1775142640744,-500.0,0.00015973,2]